[Event "Titled Tuesday Blitz April 4 Early 2023"]
[White "Weetik, Vjacheslav"]
[Black "Andreev, Konstantin"]
[WhiteFideId "4153472"]
[BlackFideId "24239305"]
[WhiteElo "2469"]
[BlackElo "2106"]
[Result "1-0"]
[Round "09"]
[TimeControl "180+2"]
[Date "2023.04.04"]
[WhiteClock "0:00:12"]
[BlackClock "0:00:27"]

1. e4 {[%clk 0:02:59]}  c5 {[%clk 0:02:59]} 2. Nf3 {[%clk 0:02:59]}  e6 {[%clk 0:03:00]} 3. d4 {[%clk 0:02:59]}  cxd4 {[%clk 0:03:00]} 4. Nxd4 {[%clk 0:03:00]}  Nc6 {[%clk 0:03:00]} 5. Nc3 {[%clk 0:03:00]}  Qc7 {[%clk 0:02:58]} 6. g3 {[%clk 0:02:59]}  a6 {[%clk 0:02:55]} 7. Bg2 {[%clk 0:02:59]}  Nf6 {[%clk 0:02:55]} 8. O-O {[%clk 0:02:59]}  Nxd4 {[%clk 0:02:53]} 9. Qxd4 {[%clk 0:02:59]}  Bc5 {[%clk 0:02:52]} 10. Bf4 {[%clk 0:02:59]}  d6 {[%clk 0:02:52]} 11. Qd2 {[%clk 0:02:57]}  h6 {[%clk 0:02:51]} 12. Rad1 {[%clk 0:02:52]}  e5 {[%clk 0:02:51]} 13. Be3 {[%clk 0:02:52]}  Bxe3 {[%clk 0:02:45]} 14. fxe3 {[%clk 0:02:48]}  Be6 {[%clk 0:02:44]} 15. Qxd6 {[%clk 0:02:46]}  Qxd6 {[%clk 0:02:44]} 16. Rxd6 {[%clk 0:02:46]}  Nd7 {[%clk 0:02:43]} 17. Nd5 {[%clk 0:02:36]}  Bxd5 {[%clk 0:02:39]} 18. Rxd5 {[%clk 0:02:36]}  Ke7 {[%clk 0:02:34]} 19. Bh3 {[%clk 0:02:32]}  Nb6 {[%clk 0:02:17]} 20. Rxe5+ {[%clk 0:02:26]}  Kd6 {[%clk 0:02:17]} 21. Ref5 {[%clk 0:02:15]}  f6 {[%clk 0:02:16]} 22. e5+ {[%clk 0:02:07]}  fxe5 {[%clk 0:02:13]} 23. Rd1+ {[%clk 0:02:06]}  Kc6 {[%clk 0:02:01]} 24. Rxe5 {[%clk 0:02:01]}  Rae8 {[%clk 0:01:58]} 25. Bg2+ {[%clk 0:01:37]}  Kc7 {[%clk 0:01:55]} 26. Rc5+ {[%clk 0:01:29]}  Kb8 {[%clk 0:01:54]} 27. Rd3 {[%clk 0:01:29]}  Rc8 {[%clk 0:01:43]} 28. Rxc8+ {[%clk 0:01:15]}  Rxc8 {[%clk 0:01:44]} 29. c3 {[%clk 0:01:15]}  Nc4 {[%clk 0:01:41]} 30. b3 {[%clk 0:01:09]}  Ne5 {[%clk 0:01:36]} 31. Rd5 {[%clk 0:01:05]}  Ng4 {[%clk 0:01:33]} 32. Rd7 {[%clk 0:01:02]}  Rc7 {[%clk 0:01:30]} 33. Rxc7 {[%clk 0:00:58]}  Kxc7 {[%clk 0:01:31]} 34. e4 {[%clk 0:00:58]}  Ne3 {[%clk 0:01:31]} 35. Bf3 {[%clk 0:00:56]}  Nc2 {[%clk 0:01:26]} 36. Kf2 {[%clk 0:00:54]}  b6 {[%clk 0:01:21]} 37. a4 {[%clk 0:00:42]}  Na3 {[%clk 0:01:19]} 38. Ke3 {[%clk 0:00:38]}  a5 {[%clk 0:01:16]} 39. Be2 {[%clk 0:00:31]}  Kd6 {[%clk 0:01:12]} 40. Kd4 {[%clk 0:00:30]}  Nb1 {[%clk 0:01:02]} 41. e5+ {[%clk 0:00:29]}  Ke6 {[%clk 0:01:01]} 42. Bg4+ {[%clk 0:00:29]}  Ke7 {[%clk 0:01:01]} 43. Kd3 {[%clk 0:00:28]}  Na3 {[%clk 0:00:58]} 44. b4 {[%clk 0:00:27]}  axb4 {[%clk 0:00:45]} 45. cxb4 {[%clk 0:00:27]}  b5 {[%clk 0:00:38]} 46. a5 {[%clk 0:00:19]}  Nc4 {[%clk 0:00:37]} 47. Kd4 {[%clk 0:00:20]}  g6 {[%clk 0:00:35]} 48. Be2 {[%clk 0:00:18]}  Nd2 {[%clk 0:00:32]} 49. Bxb5 {[%clk 0:00:16]}  Kd8 {[%clk 0:00:33]} 50. Be2 {[%clk 0:00:12]}  Nb3+ {[%clk 0:00:30]} 51. Kd5 {[%clk 0:00:12]}  Kd7 {[%clk 0:00:29]} 52. a6 {[%clk 0:00:13]}  Kc7 {[%clk 0:00:27]} 53. e6 {[%clk 0:00:12]} 1-0


[Site "https://www.chess.com"]

[Event "Titled Tuesday Blitz April 4 Early 2023"]
[White "De La Colina, Nicolas"]
[Black "Reprintsev, Alexander"]
[WhiteFideId "30946921"]
[BlackFideId "14100541"]
[WhiteElo "2046"]
[BlackElo "2211"]
[Result "1-0"]
[Round "09"]
[TimeControl "180+2"]
[Date "2023.04.04"]
[WhiteClock "0:00:08"]
[BlackClock "0:00:09"]

1. e4 {[%clk 0:03:00]}  d5 {[%clk 0:02:59]} 2. exd5 {[%clk 0:03:00]}  Qxd5 {[%clk 0:02:59]} 3. Nf3 {[%clk 0:03:01]}  Bg4 {[%clk 0:02:58]} 4. Be2 {[%clk 0:03:00]}  Nc6 {[%clk 0:02:58]} 5. d4 {[%clk 0:02:58]}  O-O-O {[%clk 0:02:57]} 6. Be3 {[%clk 0:02:58]}  e5 {[%clk 0:02:55]} 7. c4 {[%clk 0:02:58]}  Qa5+ {[%clk 0:02:55]} 8. Bd2 {[%clk 0:02:59]}  Qa6 {[%clk 0:02:54]} 9. d5 {[%clk 0:02:23]}  Bxf3 {[%clk 0:02:50]} 10. Bxf3 {[%clk 0:02:15]}  Nd4 {[%clk 0:02:50]} 11. Be2 {[%clk 0:02:10]}  Qg6 {[%clk 0:02:45]} 12. O-O {[%clk 0:02:00]}  h5 {[%clk 0:02:35]} 13. Nc3 {[%clk 0:01:54]}  h4 {[%clk 0:02:27]} 14. h3 {[%clk 0:01:49]}  f5 {[%clk 0:02:24]} 15. Be3 {[%clk 0:01:43]}  Bc5 {[%clk 0:02:10]} 16. Nb5 {[%clk 0:01:27]}  Qf6 {[%clk 0:01:57]} 17. b4 {[%clk 0:01:22]}  Nxe2+ {[%clk 0:01:55]} 18. Qxe2 {[%clk 0:01:23]}  Bxe3 {[%clk 0:01:54]} 19. Qxe3 {[%clk 0:01:24]}  a6 {[%clk 0:01:52]} 20. Nc3 {[%clk 0:01:21]}  f4 {[%clk 0:01:43]} 21. Qa7 {[%clk 0:01:11]}  Qb6 {[%clk 0:01:43]} 22. Qxb6 {[%clk 0:01:12]}  cxb6 {[%clk 0:01:43]} 23. Rfe1 {[%clk 0:01:12]}  Re8 {[%clk 0:01:36]} 24. Ne4 {[%clk 0:01:11]}  Kd7 {[%clk 0:01:32]} 25. c5 {[%clk 0:01:03]}  Nf6 {[%clk 0:01:28]} 26. Nd6 {[%clk 0:00:56]}  Nxd5 {[%clk 0:01:13]} 27. Nxe8 {[%clk 0:00:55]}  Rxe8 {[%clk 0:01:12]} 28. Rad1 {[%clk 0:00:53]}  Kc6 {[%clk 0:01:04]} 29. cxb6 {[%clk 0:00:54]}  Nxb4 {[%clk 0:01:03]} 30. a3 {[%clk 0:00:34]}  Nd5 {[%clk 0:00:57]} 31. Rb1 {[%clk 0:00:34]}  e4 {[%clk 0:00:49]} 32. Rec1+ {[%clk 0:00:35]}  Kd6 {[%clk 0:00:49]} 33. Rd1 {[%clk 0:00:32]}  Re5 {[%clk 0:00:48]} 34. Rb4 {[%clk 0:00:21]}  g5 {[%clk 0:00:44]} 35. a4 {[%clk 0:00:18]}  e3 {[%clk 0:00:41]} 36. fxe3 {[%clk 0:00:18]}  fxe3 {[%clk 0:00:41]} 37. Rb2 {[%clk 0:00:17]}  e2 {[%clk 0:00:36]} 38. Re1 {[%clk 0:00:17]}  Nf4 {[%clk 0:00:36]} 39. Rd2+ {[%clk 0:00:17]}  Kc6 {[%clk 0:00:34]} 40. Rd4 {[%clk 0:00:15]}  Kxb6 {[%clk 0:00:33]} 41. Kf2 {[%clk 0:00:15]}  Ka5 {[%clk 0:00:32]} 42. g3 {[%clk 0:00:15]}  Nxh3+ {[%clk 0:00:29]} 43. Kg2 {[%clk 0:00:15]}  g4 {[%clk 0:00:17]} 44. Rxg4 {[%clk 0:00:15]}  Ng5 {[%clk 0:00:17]} 45. gxh4 {[%clk 0:00:16]}  Ne6 {[%clk 0:00:15]} 46. Kf2 {[%clk 0:00:15]}  b5 {[%clk 0:00:14]} 47. axb5 {[%clk 0:00:14]}  axb5 {[%clk 0:00:15]} 48. Rxe2 {[%clk 0:00:14]}  Rf5+ {[%clk 0:00:15]} 49. Ke1 {[%clk 0:00:13]}  Nc5 {[%clk 0:00:14]} 50. Ra2+ {[%clk 0:00:13]}  Na4 {[%clk 0:00:12]} 51. Rg5 {[%clk 0:00:12]}  Rf4 {[%clk 0:00:12]} 52. Rh2 {[%clk 0:00:11]}  Re4+ {[%clk 0:00:11]} 53. Kf1 {[%clk 0:00:11]}  Nc3 {[%clk 0:00:11]} 54. h5 {[%clk 0:00:12]}  Rf4+ {[%clk 0:00:11]} 55. Kg2 {[%clk 0:00:11]}  Rf8 {[%clk 0:00:10]} 56. h6 {[%clk 0:00:11]}  Ne2 {[%clk 0:00:10]} 57. h7 {[%clk 0:00:09]}  Nf4+ {[%clk 0:00:09]} 58. Kh1 {[%clk 0:00:09]}  Ne6 {[%clk 0:00:09]} 59. Rg8 {[%clk 0:00:07]}  Rf1+ {[%clk 0:00:09]} 60. Kg2 {[%clk 0:00:07]}  Rc1 {[%clk 0:00:08]} 61. h8=Q {[%clk 0:00:07]}  Nf4+ {[%clk 0:00:08]} 62. Kf3 {[%clk 0:00:07]}  Nd5 {[%clk 0:00:08]} 63. Ra8+ {[%clk 0:00:07]}  Kb4 {[%clk 0:00:09]} 64. Qb2+ {[%clk 0:00:08]} 1-0


[Site "https://www.chess.com"]

[Event "Titled Tuesday Blitz April 4 Early 2023"]
[White "Romero Pallares, Daniel"]
[Black "Perez Gormaz, Matias"]
[WhiteFideId "32025637"]
[BlackFideId "3406342"]
[WhiteElo "2195"]
[BlackElo "2362"]
[Result "0-1"]
[Round "09"]
[TimeControl "180+2"]
[Date "2023.04.04"]
[WhiteClock "0:01:18"]
[BlackClock "0:01:14"]

1. d4 {[%clk 0:03:00]}  d5 {[%clk 0:02:55]} 2. Nf3 {[%clk 0:02:59]}  e6 {[%clk 0:02:54]} 3. e3 {[%clk 0:02:56]}  Nf6 {[%clk 0:02:53]} 4. Bd3 {[%clk 0:02:56]}  Bd6 {[%clk 0:02:50]} 5. O-O {[%clk 0:02:55]}  O-O {[%clk 0:02:50]} 6. Nbd2 {[%clk 0:02:55]}  c5 {[%clk 0:02:37]} 7. c3 {[%clk 0:02:54]}  Nbd7 {[%clk 0:02:33]} 8. Qe2 {[%clk 0:02:47]}  e5 {[%clk 0:02:31]} 9. dxe5 {[%clk 0:02:47]}  Nxe5 {[%clk 0:02:31]} 10. Nxe5 {[%clk 0:02:47]}  Bxe5 {[%clk 0:02:32]} 11. e4 {[%clk 0:02:47]}  Re8 {[%clk 0:02:31]} 12. f4 {[%clk 0:02:36]}  dxe4 {[%clk 0:02:30]} 13. Nxe4 {[%clk 0:02:33]}  Bd4+ {[%clk 0:01:47]} 14. cxd4 {[%clk 0:02:28]}  Nxe4 {[%clk 0:01:46]} 15. Bxe4 {[%clk 0:02:00]}  Qxd4+ {[%clk 0:01:41]} 16. Qf2 {[%clk 0:01:41]}  Rxe4 {[%clk 0:01:35]} 17. f5 {[%clk 0:01:38]}  Qxf2+ {[%clk 0:01:25]} 18. Rxf2 {[%clk 0:01:28]}  Re1+ {[%clk 0:01:25]} 19. Rf1 {[%clk 0:01:29]}  Rxf1+ {[%clk 0:01:26]} 20. Kxf1 {[%clk 0:01:29]}  Bxf5 {[%clk 0:01:26]} 21. Be3 {[%clk 0:01:30]}  b6 {[%clk 0:01:25]} 22. Rd1 {[%clk 0:01:30]}  Kf8 {[%clk 0:01:23]} 23. Bf4 {[%clk 0:01:30]}  Be6 {[%clk 0:01:17]} 24. b3 {[%clk 0:01:26]}  Ke8 {[%clk 0:01:16]} 25. Kf2 {[%clk 0:01:18]}  Rc8 {[%clk 0:01:15]} 26. Re1 {[%clk 0:01:18]}  c4 {[%clk 0:01:13]} 27. bxc4 {[%clk 0:01:18]}  Rxc4 {[%clk 0:01:14]} 28. Re2 {[%clk 0:01:18]}  Rxf4+ {[%clk 0:01:14]} 0-1


[Site "https://www.chess.com"]

[Event "Titled Tuesday Blitz April 4 Early 2023"]
[White "Goltseva, Ekaterina"]
[Black "Gold_Ocean"]
[WhiteFideId "24173770"]
[WhiteElo "2200"]
[BlackElo "2631"]
[Result "0-1"]
[Round "09"]
[TimeControl "180+2"]
[Date "2023.04.04"]
[WhiteClock "0:00:05"]
[BlackClock "0:00:09"]

1. c4 {[%clk 0:02:51]}  e5 {[%clk 0:02:59]} 2. Nc3 {[%clk 0:02:51]}  Nf6 {[%clk 0:02:53]} 3. g3 {[%clk 0:02:49]}  c6 {[%clk 0:02:33]} 4. Bg2 {[%clk 0:02:48]}  Be7 {[%clk 0:02:31]} 5. e4 {[%clk 0:02:43]}  c5 {[%clk 0:02:32]} 6. Nge2 {[%clk 0:02:42]}  Nc6 {[%clk 0:02:27]} 7. d3 {[%clk 0:02:42]}  d6 {[%clk 0:02:23]} 8. Bg5 {[%clk 0:02:40]}  Be6 {[%clk 0:02:18]} 9. Bxf6 {[%clk 0:02:40]}  Bxf6 {[%clk 0:02:19]} 10. a3 {[%clk 0:02:36]}  O-O {[%clk 0:02:19]} 11. O-O {[%clk 0:02:35]}  g6 {[%clk 0:02:15]} 12. f4 {[%clk 0:02:32]}  exf4 {[%clk 0:02:14]} 13. gxf4 {[%clk 0:02:33]}  Bg4 {[%clk 0:02:07]} 14. Qd2 {[%clk 0:02:18]}  Bg7 {[%clk 0:02:00]} 15. Ng3 {[%clk 0:02:03]}  Nd4 {[%clk 0:01:59]} 16. Rae1 {[%clk 0:01:58]}  h5 {[%clk 0:01:54]} 17. h3 {[%clk 0:01:51]}  Bd7 {[%clk 0:01:49]} 18. Nd5 {[%clk 0:01:43]}  Qh4 {[%clk 0:01:42]} 19. Kh2 {[%clk 0:01:38]}  Kh8 {[%clk 0:01:18]} 20. Qf2 {[%clk 0:01:18]}  Ne6 {[%clk 0:01:01]} 21. e5 {[%clk 0:00:58]}  dxe5 {[%clk 0:00:55]} 22. f5 {[%clk 0:00:57]}  Ng5 {[%clk 0:00:48]} 23. f6 {[%clk 0:00:51]}  Bh6 {[%clk 0:00:42]} 24. Ne4 {[%clk 0:00:30]}  Qxf2 {[%clk 0:00:34]} 25. Rxf2 {[%clk 0:00:30]}  Ne6 {[%clk 0:00:34]} 26. b4 {[%clk 0:00:26]}  cxb4 {[%clk 0:00:30]} 27. axb4 {[%clk 0:00:27]}  Bc6 {[%clk 0:00:31]} 28. Nd6 {[%clk 0:00:24]}  Rad8 {[%clk 0:00:28]} 29. c5 {[%clk 0:00:17]}  b6 {[%clk 0:00:27]} 30. b5 {[%clk 0:00:07]}  bxc5 {[%clk 0:00:17]} 31. Nxf7+ {[%clk 0:00:03]}  Rxf7 {[%clk 0:00:16]} 32. bxc6 {[%clk 0:00:03]}  Bf4+ {[%clk 0:00:09]} 33. Kh1 {[%clk 0:00:03]}  Bg3 {[%clk 0:00:09]} 34. Rfe2 {[%clk 0:00:03]}  Bxe1 {[%clk 0:00:08]} 35. Rxe1 {[%clk 0:00:03]}  Nd4 {[%clk 0:00:08]} 36. Rxe5 {[%clk 0:00:04]}  Nxc6 {[%clk 0:00:07]} 37. Re7 {[%clk 0:00:03]}  Nxe7 {[%clk 0:00:07]} 38. fxe7 {[%clk 0:00:04]}  Re8 {[%clk 0:00:07]} 39. Be4 {[%clk 0:00:03]}  Kg7 {[%clk 0:00:07]} 40. Kg2 {[%clk 0:00:03]}  Rfxe7 {[%clk 0:00:07]} 41. Nxe7 {[%clk 0:00:03]}  Rxe7 {[%clk 0:00:08]} 42. Kf3 {[%clk 0:00:04]}  Rxe4 {[%clk 0:00:08]} 43. Kxe4 {[%clk 0:00:04]}  a5 {[%clk 0:00:08]} 44. Kd5 {[%clk 0:00:04]}  a4 {[%clk 0:00:09]} 45. Kc4 {[%clk 0:00:05]}  Kf6 {[%clk 0:00:09]} 46. Kc3 {[%clk 0:00:05]}  g5 {[%clk 0:00:09]} 47. Kc4 {[%clk 0:00:05]}  g4 {[%clk 0:00:09]} 0-1


[Site "https://www.chess.com"]

[Event "Titled Tuesday Blitz April 4 Early 2023"]
[White "Nguyen Hong Nhung"]
[Black "Souleidis, Georgios"]
[WhiteFideId "12412201"]
[BlackFideId "4206827"]
[WhiteElo "1968"]
[BlackElo "2401"]
[Result "1-0"]
[Round "09"]
[TimeControl "180+2"]
[Date "2023.04.04"]
[WhiteClock "0:00:58"]
[BlackClock "0:00:05"]

1. e4 {[%clk 0:03:00]}  c5 {[%clk 0:02:59]} 2. Nc3 {[%clk 0:03:00]}  e6 {[%clk 0:02:59]} 3. f4 {[%clk 0:03:00]}  a6 {[%clk 0:02:58]} 4. a4 {[%clk 0:03:00]}  d5 {[%clk 0:02:57]} 5. Nf3 {[%clk 0:02:59]}  Nc6 {[%clk 0:02:56]} 6. d3 {[%clk 0:02:58]}  Nf6 {[%clk 0:02:54]} 7. g3 {[%clk 0:02:58]}  Be7 {[%clk 0:02:53]} 8. Bg2 {[%clk 0:02:58]}  O-O {[%clk 0:02:53]} 9. O-O {[%clk 0:02:58]}  Rb8 {[%clk 0:02:49]} 10. Ne5 {[%clk 0:02:56]}  Qc7 {[%clk 0:02:19]} 11. exd5 {[%clk 0:02:50]}  exd5 {[%clk 0:01:56]} 12. Bxd5 {[%clk 0:02:29]}  Nxe5 {[%clk 0:01:51]} 13. fxe5 {[%clk 0:02:26]}  Qxe5 {[%clk 0:01:36]} 14. Bg2 {[%clk 0:02:23]}  Bg4 {[%clk 0:01:29]} 15. Qe1 {[%clk 0:02:16]}  Bd6 {[%clk 0:01:24]} 16. Bf4 {[%clk 0:02:14]}  Qxe1 {[%clk 0:01:23]} 17. Raxe1 {[%clk 0:02:15]}  Bxf4 {[%clk 0:01:19]} 18. Rxf4 {[%clk 0:02:16]}  b5 {[%clk 0:01:10]} 19. b3 {[%clk 0:02:03]}  b4 {[%clk 0:00:59]} 20. Nd5 {[%clk 0:01:57]}  Nxd5 {[%clk 0:00:48]} 21. Bxd5 {[%clk 0:01:57]}  Bh5 {[%clk 0:00:38]} 22. Re7 {[%clk 0:01:54]}  a5 {[%clk 0:00:21]} 23. h4 {[%clk 0:01:46]}  Rbd8 {[%clk 0:00:14]} 24. Bc4 {[%clk 0:01:42]}  Rd4 {[%clk 0:00:02]} 25. Rxd4 {[%clk 0:01:28]}  cxd4 {[%clk 0:00:03]} 26. Re4 {[%clk 0:01:23]}  Bd1 {[%clk 0:00:03]} 27. Rxd4 {[%clk 0:01:22]}  Bxc2 {[%clk 0:00:04]} 28. Rd5 {[%clk 0:01:22]}  g6 {[%clk 0:00:03]} 29. Rxa5 {[%clk 0:01:22]}  Rd8 {[%clk 0:00:03]} 30. Rb5 {[%clk 0:01:13]}  Bxd3 {[%clk 0:00:04]} 31. Rxb4 {[%clk 0:01:06]}  Bxc4 {[%clk 0:00:03]} 32. Rxc4 {[%clk 0:01:03]}  Rd3 {[%clk 0:00:04]} 33. b4 {[%clk 0:01:03]}  Rxg3+ {[%clk 0:00:05]} 34. Kf2 {[%clk 0:01:03]}  Ra3 {[%clk 0:00:05]} 35. b5 {[%clk 0:01:03]}  f5 {[%clk 0:00:05]} 36. b6 {[%clk 0:01:00]}  Rb3 {[%clk 0:00:06]} 37. a5 {[%clk 0:01:00]}  Kg7 {[%clk 0:00:05]} 38. Ra4 {[%clk 0:00:58]}  Kf6 {[%clk 0:00:02]} 39. a6 {[%clk 0:00:58]}  Rxb6 {[%clk 0:00:03]} 40. a7 {[%clk 0:00:58]}  Rb2+ {[%clk 0:00:04]} 41. Ke3 {[%clk 0:00:58]}  Rb3+ {[%clk 0:00:04]} 42. Kd2 {[%clk 0:00:58]}  Rb2+ {[%clk 0:00:05]} 43. Kc3 {[%clk 0:00:58]} 1-0


[Site "https://www.chess.com"]

[Event "Titled Tuesday Blitz April 4 Early 2023"]
[White "Martic, Ivan"]
[Black "M_Bozorov"]
[WhiteFideId "929301"]
[WhiteElo "2360"]
[BlackElo "2458"]
[Result "1/2-1/2"]
[Round "09"]
[TimeControl "180+2"]
[Date "2023.04.04"]
[WhiteClock "0:00:11"]
[BlackClock "0:00:22"]

1. d4 {[%clk 0:02:55]}  Nf6 {[%clk 0:02:57]} 2. Bg5 {[%clk 0:02:54]}  Ne4 {[%clk 0:02:57]} 3. Bf4 {[%clk 0:02:54]}  d5 {[%clk 0:02:56]} 4. e3 {[%clk 0:02:53]}  c5 {[%clk 0:02:56]} 5. Bd3 {[%clk 0:02:53]}  Nf6 {[%clk 0:02:56]} 6. c3 {[%clk 0:02:50]}  Nc6 {[%clk 0:02:54]} 7. Nd2 {[%clk 0:02:49]}  Qb6 {[%clk 0:02:29]} 8. Qb1 {[%clk 0:02:47]}  cxd4 {[%clk 0:02:16]} 9. exd4 {[%clk 0:02:48]}  Bg4 {[%clk 0:02:16]} 10. Ngf3 {[%clk 0:02:44]}  Bh5 {[%clk 0:02:15]} 11. O-O {[%clk 0:02:42]}  e6 {[%clk 0:02:16]} 12. Re1 {[%clk 0:02:39]}  Bg6 {[%clk 0:02:15]} 13. Ne5 {[%clk 0:02:33]}  Nxe5 {[%clk 0:02:12]} 14. Bxe5 {[%clk 0:02:27]}  Be7 {[%clk 0:02:12]} 15. Bxg6 {[%clk 0:02:15]}  hxg6 {[%clk 0:02:11]} 16. Qd3 {[%clk 0:02:14]}  Rc8 {[%clk 0:01:54]} 17. Rab1 {[%clk 0:02:10]}  Qa6 {[%clk 0:01:50]} 18. Qxa6 {[%clk 0:02:07]}  bxa6 {[%clk 0:01:51]} 19. Bxf6 {[%clk 0:02:00]}  gxf6 {[%clk 0:01:51]} 20. g3 {[%clk 0:01:54]}  Kd7 {[%clk 0:01:47]} 21. h4 {[%clk 0:01:48]}  Rc7 {[%clk 0:01:46]} 22. Nf3 {[%clk 0:01:46]}  Rb8 {[%clk 0:01:44]} 23. Rec1 {[%clk 0:01:42]}  a5 {[%clk 0:01:32]} 24. Ne1 {[%clk 0:01:34]}  a4 {[%clk 0:01:31]} 25. Nd3 {[%clk 0:01:34]}  Bd6 {[%clk 0:01:28]} 26. Re1 {[%clk 0:01:24]}  f5 {[%clk 0:01:28]} 27. f4 {[%clk 0:01:22]}  Rcb7 {[%clk 0:01:25]} 28. Rec1 {[%clk 0:01:19]}  Rc7 {[%clk 0:01:25]} 29. Kf1 {[%clk 0:01:18]}  Ke7 {[%clk 0:01:23]} 30. Ke2 {[%clk 0:01:17]}  Kd7 {[%clk 0:01:23]} 31. Kd2 {[%clk 0:01:17]}  Ke7 {[%clk 0:01:24]} 32. b3 {[%clk 0:01:12]}  axb3 {[%clk 0:01:19]} 33. Rxb3 {[%clk 0:01:12]}  Rxb3 {[%clk 0:01:00]} 34. axb3 {[%clk 0:01:13]}  a5 {[%clk 0:00:45]} 35. Ra1 {[%clk 0:01:11]}  Rb7 {[%clk 0:00:46]} 36. Kc2 {[%clk 0:01:10]}  Rb5 {[%clk 0:00:46]} 37. c4 {[%clk 0:01:04]}  dxc4 {[%clk 0:00:43]} 38. bxc4 {[%clk 0:01:04]}  Rb7 {[%clk 0:00:41]} 39. Rxa5 {[%clk 0:01:04]}  f6 {[%clk 0:00:39]} 40. c5 {[%clk 0:00:58]}  Bc7 {[%clk 0:00:39]} 41. Ra6 {[%clk 0:00:58]}  g5 {[%clk 0:00:36]} 42. hxg5 {[%clk 0:00:56]}  fxg5 {[%clk 0:00:37]} 43. Ne5 {[%clk 0:00:41]}  gxf4 {[%clk 0:00:34]} 44. gxf4 {[%clk 0:00:42]}  Bxe5 {[%clk 0:00:30]} 45. dxe5 {[%clk 0:00:29]}  Rb4 {[%clk 0:00:26]} 46. Ra7+ {[%clk 0:00:25]}  Kd8 {[%clk 0:00:25]} 47. Kc3 {[%clk 0:00:18]}  Rxf4 {[%clk 0:00:25]} 48. Ra6 {[%clk 0:00:18]}  Kd7 {[%clk 0:00:18]} 49. Ra7+ {[%clk 0:00:17]}  Kc6 {[%clk 0:00:16]} 50. Re7 {[%clk 0:00:15]}  Kxc5 {[%clk 0:00:16]} 51. Rxe6 {[%clk 0:00:15]}  Kd5 {[%clk 0:00:16]} 52. Re8 {[%clk 0:00:15]}  Re4 {[%clk 0:00:16]} 53. Kd3 {[%clk 0:00:11]}  Rxe5 {[%clk 0:00:17]} 54. Rf8 {[%clk 0:00:11]}  Ke6 {[%clk 0:00:15]} 55. Re8+ {[%clk 0:00:10]}  Kd5 {[%clk 0:00:15]} 56. Rxe5+ {[%clk 0:00:11]}  Kxe5 {[%clk 0:00:15]} 57. Ke3 {[%clk 0:00:12]}  f4+ {[%clk 0:00:15]} 58. Kf3 {[%clk 0:00:13]}  Kf5 {[%clk 0:00:16]} 59. Kf2 {[%clk 0:00:13]}  Ke4 {[%clk 0:00:17]} 60. Ke2 {[%clk 0:00:13]}  f3+ {[%clk 0:00:18]} 61. Kf2 {[%clk 0:00:13]}  Kf4 {[%clk 0:00:19]} 62. Kf1 {[%clk 0:00:14]}  Ke3 {[%clk 0:00:20]} 63. Ke1 {[%clk 0:00:14]}  Ke4 {[%clk 0:00:20]} 64. Kf2 {[%clk 0:00:12]}  Kf4 {[%clk 0:00:21]} 65. Kf1 {[%clk 0:00:12]}  Kg4 {[%clk 0:00:21]} 66. Kf2 {[%clk 0:00:11]}  Kf4 {[%clk 0:00:22]} 1/2-1/2


[Site "https://www.chess.com"]

[Event "Titled Tuesday Blitz April 4 Early 2023"]
[White "Jain Kashish Manoj"]
[Black "Chernomordik, Pavel"]
[WhiteFideId "35081098"]
[BlackFideId "2804530"]
[WhiteElo "2191"]
[BlackElo "2193"]
[Result "0-1"]
[Round "09"]
[TimeControl "180+2"]
[Date "2023.04.04"]
[WhiteClock "0:00:01"]
[BlackClock "0:00:17"]

1. Nf3 {[%clk 0:03:00]}  g6 {[%clk 0:02:59]} 2. e3 {[%clk 0:02:57]}  Bg7 {[%clk 0:02:57]} 3. c4 {[%clk 0:02:56]}  d6 {[%clk 0:02:54]} 4. Nc3 {[%clk 0:02:52]}  Nf6 {[%clk 0:02:53]} 5. b3 {[%clk 0:02:51]}  O-O {[%clk 0:02:53]} 6. Bb2 {[%clk 0:02:52]}  e5 {[%clk 0:02:53]} 7. d3 {[%clk 0:02:45]}  Nc6 {[%clk 0:02:50]} 8. Be2 {[%clk 0:02:44]}  Re8 {[%clk 0:02:45]} 9. O-O {[%clk 0:02:44]}  h6 {[%clk 0:02:42]} 10. a3 {[%clk 0:02:38]}  a5 {[%clk 0:02:38]} 11. Qc2 {[%clk 0:02:36]}  g5 {[%clk 0:02:35]} 12. Rac1 {[%clk 0:02:28]}  Bf5 {[%clk 0:02:25]} 13. Rfd1 {[%clk 0:02:05]}  Ne7 {[%clk 0:02:15]} 14. b4 {[%clk 0:01:51]}  Ng6 {[%clk 0:02:09]} 15. Nd5 {[%clk 0:01:42]}  g4 {[%clk 0:02:00]} 16. Nd2 {[%clk 0:01:34]}  c6 {[%clk 0:01:58]} 17. Nxf6+ {[%clk 0:01:33]}  Qxf6 {[%clk 0:01:57]} 18. Ne4 {[%clk 0:01:31]}  Qe7 {[%clk 0:01:55]} 19. c5 {[%clk 0:01:28]}  dxc5 {[%clk 0:01:32]} 20. bxc5 {[%clk 0:01:18]}  Red8 {[%clk 0:01:28]} 21. Nd6 {[%clk 0:01:16]}  Be6 {[%clk 0:01:27]} 22. a4 {[%clk 0:01:13]}  h5 {[%clk 0:01:25]} 23. d4 {[%clk 0:01:09]}  Qg5 {[%clk 0:01:18]} 24. Nxb7 {[%clk 0:00:58]}  Rdb8 {[%clk 0:01:16]} 25. Nd6 {[%clk 0:00:51]}  h4 {[%clk 0:01:15]} 26. Bc4 {[%clk 0:00:38]}  Nf8 {[%clk 0:00:59]} 27. dxe5 {[%clk 0:00:26]}  g3 {[%clk 0:00:48]} 28. Ne4 {[%clk 0:00:17]}  gxh2+ {[%clk 0:00:45]} 29. Kh1 {[%clk 0:00:14]}  Qh5 {[%clk 0:00:39]} 30. Bxe6 {[%clk 0:00:12]}  Nxe6 {[%clk 0:00:38]} 31. Bd4 {[%clk 0:00:09]}  h3 {[%clk 0:00:36]} 32. f4 {[%clk 0:00:05]}  Qg6 {[%clk 0:00:27]} 33. gxh3 {[%clk 0:00:03]}  Kh8 {[%clk 0:00:20]} 34. Qg2 {[%clk 0:00:02]}  Qf5 {[%clk 0:00:19]} 35. Kxh2 {[%clk 0:00:01]}  Rg8 {[%clk 0:00:18]} 36. Qf3 {[%clk 0:00:01]}  Bh6 {[%clk 0:00:17]} 0-1


[Site "https://www.chess.com"]